[Event "1st Cyprus Chess Tournament 2019"]
[Site "Larnaca"]
[Date "2019.10.28"]
[Round "5.8"]
[White "Damianou, Ioannis"]
[Black "Biljanic, Ljubomir"]
[Result "1-0"]
[ECO "A29"]
[WhiteElo "2118"]
[BlackElo "2241"]
[Annotator "RC"]
[PlyCount "69"]
[EventDate "2019.10.25"]
[EventType "swiss"]
[EventCountry "CYP"]
[SourceTitle "playchess.com"]
[Source "ChessBase"]
[SourceQuality "1"]
[TimeControl "5400+30"]

1. c4 {[%emt 0:00:00]} e5 {[%emt 0:00:00]} 2. g3 {[%emt 0:00:00]} Nf6 {[%emt 0:00:00]} 3. Bg2 {[%emt 0:00:00]} Nc6 {[%emt 0:00:05]} 4. Nc3 {[%emt 0:02:00]} d6 {[%emt 0:00:28]} 5. Nf3 {[%emt 0:02:21]} g6 {[%emt 0:01:08]} 6. d4 {[%emt 0:00:31]} exd4 {[%emt 0:01:08]} 7. Nxd4 {[%emt 0:00:21]} Nxd4 {[%emt 0:02:32]} 8. Qxd4 {[%emt 0:00:06]} Bg7 {[%emt 0:01:29]} 9. O-O {[%emt 0:02:11]} O-O {[%emt 0:00:59]} 10. Qd2 {[%emt 0:03:28]} Qe7 {[%emt 0:09:20]} 11. e4 {[%emt 0:04:58]} Be6 {[%emt 0:21:31]} 12. b3 {[%emt 0:02:53]} c6 {[%emt 0:00:37]} 13. Ba3 {[%emt 0:06:18]} c5 {[%emt 0:05:04]} 14. Rad1 {[%emt 0:04:31]} Rfd8 {[%emt 0:00:38]} 15. f4 {[%emt 0:04:17]} Bg4 {[%emt 0:14:45]} 16. Rde1 {[%emt 0:02:55]} Be6 {[%emt 0:09:26]} 17. Bb2 {[%emt 0:10:07]} Rac8 {[%emt 0:03:18]} 18. f5 {[%emt 0:14:02]} Bd7 {[%emt 0:00:34]} 19. Nd5 {[%emt 0:02:54]} Nxd5 {[%emt 0:02:17]} 20. Bxg7 {[%emt 0:04:15]} Nf6 {[%emt 0:08:18]} 21. Bxf6 {[%emt 0:02:27]} Qxf6 {[%emt 0:00:07]} 22. fxg6 {[%emt 0:00:12]} Qxg6 {[%emt 0:00:21]} 23. e5 {[%emt 0:01:08]} dxe5 {[%emt 0:03:01]} 24. Bd5 {[%emt 0:05:20]} Bh3 {[%emt 0:02:31]} 25. Rf2 {[%emt 0:02:02]} e4 {[%emt 0:05:25]} 26. Qf4 {[%emt 0:04:53]} Be6 {[%emt 0:02:20]} 27. Bxb7 {[%emt 0:01:08]} e3 {[%emt 0:00:59]} 28. Qxe3 {[%emt 0:00:44]} Rc7 {[%emt 0:01:27]} 29. Be4 {[%emt 0:00:34]} Qg7 {[%emt 0:00:09]} 30. Bf5 {[%emt 0:03:24]} Rc6 {[%emt 0:02:25]} 31. Bc2 {[%emt 0:01:47]} Rd4 {[%emt 0:00:21]} 32. Qf3 {[%emt 0:04:26]} Rc8 {[%emt 0:01:33]} 33. Qb7 {[%emt 0:01:08]} Rcd8 {[%emt 0:00:02]} 34. Qxa7 {[%emt 0:00:50]} Qf8 {[%emt 0:01:28]} 35. Rxe6 {[%emt 0:01:58]} 1-0

[Event "1st Cyprus Chess Tournament 2019"]
[Site "Larnaca"]
[Date "2019.10.28"]
[Round "5.9"]
[White "Kochergin, Sergey"]
[Black "Kourouyiannis, Fivos"]
[Result "1-0"]
[ECO "B38"]
[WhiteElo "2224"]
[BlackElo "1708"]
[Annotator "RC"]
[PlyCount "49"]
[EventDate "2019.10.25"]
[EventType "swiss"]
[EventCountry "CYP"]
[SourceTitle "playchess.com"]
[Source "ChessBase"]
[SourceQuality "1"]
[TimeControl "5400+30"]

1. d4 {[%emt 0:00:00]} Nf6 {[%emt 0:00:00]} 2. c4 {[%emt 0:00:00]} g6 {[%emt 0:00:00]} 3. Nc3 {[%emt 0:00:00]} Bg7 {[%emt 0:00:00]} 4. e4 {[%emt 0:00:00]} d6 {[%emt 0:00:00]} 5. f3 {[%emt 0:00:00]} O-O {[%emt 0:00:10]} 6. Be3 {[%emt 0:00:04]} c5 {[%emt 0:00:44]} 7. Nge2 {[%emt 0:00:13]} cxd4 {[%emt 0:00:16]} 8. Nxd4 {[%emt 0:00:03]} Nc6 {[%emt 0:03:20]} 9. Be2 {[%emt 0:00:35]} Nxd4 {[%emt 0:06:43]} 10. Bxd4 {[%emt 0:00:04]} b6 {[%emt 0:01:39]} 11. O-O {[%emt 0:00:10]} Ba6 {[%emt 0:11:51]} 12. Qd2 {[%emt 0:00:41]} Rc8 {[%emt 0:02:26]} 13. b3 {[%emt 0:00:20]} Nd7 {[%emt 0:00:54]} 14. Bxg7 {[%emt 0:00:10]} Kxg7 {[%emt 0:00:05]} 15. f4 {[%emt 0:00:37]} Kg8 {[%emt 0:06:42]} 16. Rf3 {[%emt 0:00:39]} Bb7 {[%emt 0:10:09]} 17. Rh3 {[%emt 0:02:44]} f5 {[%emt 0:00:03]} 18. exf5 {[%emt 0:00:21]} Rxf5 {[%emt 0:00:12]} 19. Bg4 {[%emt 0:00:19]} Qf8 {[%emt 0:03:13]} 20. Bxf5 {[%emt 0:00:20]} Qxf5 {[%emt 0:00:02]} 21. Re1 {[%emt 0:00:47]} Qc5+ {[%emt 0:10:03]} 22. Qe3 {[%emt 0:00:29]} Rf8 {[%emt 0:01:10]} 23. Qxc5 {[%emt 0:00:15]} dxc5 {[%emt 0:01:01]} 24. Rxe7 {[%emt 0:00:06]} Rf7 {[%emt 0:00:21]} 25. Rxf7 {[%emt 0:00:02]} 1-0

[Event "1st Cyprus Chess Tournament 2019"]
[Site "Larnaca"]
[Date "2019.10.29"]
[Round "6.6"]
[White "Damianou, Ioannis"]
[Black "Lornye, Pylyp"]
[Result "0-1"]
[ECO "A88"]
[WhiteElo "2118"]
[BlackElo "2284"]
[Annotator "ChessBase"]
[PlyCount "114"]
[EventDate "2019.10.25"]
[EventType "swiss"]
[EventCountry "CYP"]
[SourceTitle "playchess.com"]
[Source "ChessBase"]
[SourceQuality "1"]
[TimeControl "5400+30"]

1. c4 {[%emt 0:00:00]} f5 {[%emt 0:02:40]} 2. Nc3 {[%emt 0:00:44]} Nf6 {[%emt 0:00:11]} 3. g3 {[%emt 0:00:23]} g6 {[%emt 0:00:07]} 4. Bg2 {[%emt 0:00:14]} Bg7 {[%emt 0:00:20]} 5. Nf3 {[%emt 0:01:40]} d6 {[%emt 0:00:37]} 6. d4 {[%emt 0:00:29]} O-O {[%emt 0:00:11]} 7. O-O {[%emt 0:00:10]} Qe8 {[%emt 0:00:08]} 8. b3 {[%emt 0:13:52]} Na6 {[%emt 0:05:25]} 9. Bb2 {[%emt 0:02:29]} c6 {[%emt 0:04:12]} 10. e4 {[%emt 0:06:11]} fxe4 {[%emt 0:03:20]} 11. Ng5 {[%emt 0:00:57]} d5 {[%emt 0:01:23]} 12. f3 {[%emt 0:04:12]} h6 {[%emt 0:07:51]} 13. Nh3 {[%emt 0:00:17]} exf3 {[%emt 0:04:44]} 14. Qxf3 {[%emt 0:00:26]} Ng4 {[%emt 0:00:30]} 15. Qd3 {[%emt 0:03:06]} Bf5 {[%emt 0:00:16]} 16. Qd2 {[%emt 0:02:23]} dxc4 {[%emt 0:06:01]} 17. bxc4 {[%emt 0:01:27]} Qd7 {[%emt 0:00:20]} 18. Rad1 {[%emt 0:14:18]} Rad8 {[%emt 0:01:38]} 19. Ne4 {[%emt 0:09:43]} c5 {[%emt 0:09:10]} 20. d5 {[%emt 0:09:49]} Bxb2 {[%emt 0:05:07]} 21. Qxb2 {[%emt 0:00:10]} Ne3 {[%emt 0:00:36]} 22. Qd2 {[%emt 0:03:00]} Nxf1 {[%emt 0:01:39]} 23. Qxh6 {[%emt 0:01:23]} e6 {[%emt 0:00:33]} 24. Rxf1 {[%emt 0:04:08]} Qg7 {[%emt 0:01:03]} 25. Qh4 {[%emt 0:01:38]} Bxe4 {[%emt 0:02:31]} 26. Bxe4 {[%emt 0:05:07]} Rxf1+ {[%emt 0:00:41]} 27. Kxf1 {[%emt 0:00:04]} Rf8+ {[%emt 0:00:21]} 28. Kg2 {[%emt 0:01:54]} Qb2+ {[%emt 0:09:47]} 29. Kh1 {[%emt 0:00:24]} Qc1+ {[%emt 0:00:57]} 30. Ng1 {[%emt 0:00:27]} Qxc4 {[%emt 0:00:22]} 31. Qg4 {[%emt 0:04:48]} Rf6 {[%emt 0:00:23]} 32. Nf3 {[%emt 0:00:33]} exd5 {[%emt 0:09:21]} 33. Qc8+ {[%emt 0:00:43]} Kg7 {[%emt 0:00:15]} 34. Qxb7+ {[%emt 0:02:26]} Rf7 {[%emt 0:05:08]} 35. Qxf7+ {[%emt 0:00:09]} Kxf7 {[%emt 0:00:01]} 36. Ne5+ {[%emt 0:00:07]} Ke6 {[%emt 0:00:05]} 37. Nxc4 {[%emt 0:00:04]} dxe4 {[%emt 0:00:05]} 38. Kg2 {[%emt 0:01:07]} Kd5 {[%emt 0:00:39]} 39. Na5 {[%emt 0:01:14]} Nb4 {[%emt 0:00:48]} 40. a3 {[%emt 0:00:43]} Nc2 {[%emt 0:01:16]} 41. h4 {[%emt 0:01:32]} c4 {[%emt 0:01:25]} 42. g4 {[%emt 0:01:43]} c3 {[%emt 0:00:54]} 43. h5 {[%emt 0:01:56]} gxh5 {[%emt 0:01:15]} 44. gxh5 {[%emt 0:00:06]} Ne3+ {[%emt 0:03:24]} 45. Kf2 {[%emt 0:00:51]} c2 {[%emt 0:00:20]} 46. Nb3 {[%emt 0:00:06]} Kc4 {[%emt 0:01:07]} 47. Nc1 {[%emt 0:00:05]} Ng4+ {[%emt 0:02:36]} 48. Kg3 {[%emt 0:01:34]} Nf6 {[%emt 0:00:36]} 49. h6 {[%emt 0:00:49]} Kc3 {[%emt 0:00:26]} 50. Kf4 {[%emt 0:00:34]} Kb2 {[%emt 0:02:03]} 51. Ne2 {[%emt 0:01:11]} c1=Q+ {[%emt 0:00:19]} 52. Nxc1 {[%emt 0:00:04]} Kxc1 {[%emt 0:00:04]} 53. a4 {[%emt 0:01:55]} a5 {[%emt 0:00:11]} 54. Kf5 {[%emt 0:00:37]} e3 {[%emt 0:00:09]} 55. Kxf6 {[%emt 0:00:07]} e2 {[%emt 0:00:07]} 56. h7 {[%emt 0:00:06]} e1=Q {[%emt 0:00:07]} 57. Kg7 {[%emt 0:00:10]} Qc3+ {[%emt 0:00:10]} 0-1

[Event "1st Cyprus Chess Tournament 2019"]
[Site "Larnaca"]
[Date "2019.10.29"]
[Round "6.7"]
[White "Arkell, Keith C"]
[Black "Gerasimenyuk, Mikhail"]
[Result "1-0"]
[ECO "A37"]
[WhiteElo "2447"]
[BlackElo "2113"]
[Annotator "ChessBase"]
[PlyCount "77"]
[EventDate "2019.10.25"]
[EventType "swiss"]
[EventCountry "CYP"]
[SourceTitle "playchess.com"]
[Source "ChessBase"]
[SourceQuality "1"]
[TimeControl "5400+30"]

1. c4 {[%emt 0:00:00]} c5 {[%emt 0:00:00]} 2. Nc3 {[%emt 0:00:00]} Nc6 {[%emt 0:00:00]} 3. g3 {[%emt 0:00:00]} g6 {[%emt 0:00:03]} 4. Bg2 {[%emt 0:00:00]} Bg7 {[%emt 0:00:05]} 5. Nf3 {[%emt 0:00:55]} d6 {[%emt 0:00:25]} 6. O-O {[%emt 0:00:08]} Nh6 {[%emt 0:00:07]} 7. Rb1 {[%emt 0:00:19]} Nf5 {[%emt 0:00:16]} 8. a3 {[%emt 0:00:10]} a5 {[%emt 0:01:01]} 9. b3 {[%emt 0:00:05]} h5 {[%emt 0:01:05]} 10. h3 {[%emt 0:01:28]} Nfd4 {[%emt 0:19:38]} 11. Nxd4 {[%emt 0:03:05]} cxd4 {[%emt 0:04:16]} 12. Nb5 {[%emt 0:00:05]} Bf5 {[%emt 0:01:44]} 13. d3 {[%emt 0:00:06]} Qd7 {[%emt 0:04:04]} 14. h4 {[%emt 0:02:31]} O-O {[%emt 0:01:48]} 15. e4 {[%emt 0:01:59]} dxe3 {[%emt 0:03:53]} 16. fxe3 {[%emt 0:03:08]} Ne5 {[%emt 0:00:49]} 17. e4 {[%emt 0:00:34]} Bg4 {[%emt 0:00:53]} 18. Qc2 {[%emt 0:00:07]} Bh3 {[%emt 0:00:36]} 19. d4 {[%emt 0:01:45]} Bxg2 {[%emt 0:01:34]} 20. Kxg2 {[%emt 0:00:08]} Ng4 {[%emt 0:00:05]} 21. Bd2 {[%emt 0:00:49]} e5 {[%emt 0:08:07]} 22. Qd3 {[%emt 0:02:22]} Qc6 {[%emt 0:03:28]} 23. Rbe1 {[%emt 0:17:18]} f5 {[%emt 0:04:03]} 24. d5 {[%emt 0:11:45]} Qd7 {[%emt 0:00:41]} 25. Bg5 {[%emt 0:00:27]} Rf7 {[%emt 0:01:22]} 26. c5 {[%emt 0:10:34]} fxe4 {[%emt 0:03:58]} 27. Qc4 {[%emt 0:00:25]} Raf8 {[%emt 0:02:20]} 28. Nxd6 {[%emt 0:04:00]} Rf2+ {[%emt 0:01:06]} 29. Kg1 {[%emt 0:00:07]} R8f3 {[%emt 0:01:23]} 30. Nxe4 {[%emt 0:01:22]} Qf5 {[%emt 0:04:32]} 31. d6+ {[%emt 0:00:49]} Kh7 {[%emt 0:00:09]} 32. Rxf2 {[%emt 0:04:05]} Rxf2 {[%emt 0:00:58]} 33. Qd3 {[%emt 0:07:00]} Rf3 {[%emt 0:02:41]} 34. Qe2 {[%emt 0:05:59]} Rxb3 {[%emt 0:01:06]} 35. Rf1 {[%emt 0:00:50]} Qe6 {[%emt 0:00:35]} 36. Qd1 {[%emt 0:02:22]} Rb2 {[%emt 0:02:48]} 37. Bc1 {[%emt 0:00:48]} Qa2 {[%emt 0:01:02]} 38. Bxb2 {[%emt 0:01:16]} Qxb2 {[%emt 0:00:01]} 39. Qd2 {[%emt 0:00:08]} 1-0

[Event "1st Cyprus Chess Tournament 2019"]
[Site "Larnaca"]
[Date "2019.10.29"]
[Round "6.8"]
[White "Constantinou, Pavlos"]
[Black "Kayumov, Dmitry D"]
[Result "1-0"]
[ECO "A46"]
[WhiteElo "2093"]
[BlackElo "2402"]
[Annotator "ChessBase"]
[PlyCount "117"]
[EventDate "2019.10.25"]
[EventType "swiss"]
[EventCountry "CYP"]
[SourceTitle "playchess.com"]
[Source "ChessBase"]
[SourceQuality "1"]
[TimeControl "5400+30"]

1. d4 {[%emt 0:00:00]} Nf6 {[%emt 0:00:00]} 2. Nf3 {[%emt 0:00:00]} e6 {[%emt 0:00:00]} 3. g3 {[%emt 0:00:00]} b5 {[%emt 0:00:18]} 4. Bg2 {[%emt 0:00:02]} Bb7 {[%emt 0:00:21]} 5. O-O {[%emt 0:00:18]} a6 {[%emt 0:01:25]} 6. a4 {[%emt 0:04:37]} b4 {[%emt 0:01:25]} 7. c3 {[%emt 0:01:24]} c5 {[%emt 0:00:54]} 8. Bf4 {[%emt 0:11:47]} cxd4 {[%emt 0:01:28]} 9. cxd4 {[%emt 0:03:19]} Be7 {[%emt 0:03:10]} 10. Nbd2 {[%emt 0:00:49]} d5 {[%emt 0:00:48]} 11. Ne5 {[%emt 0:03:37]} Nc6 {[%emt 0:03:54]} 12. Nb3 {[%emt 0:02:35]} Nxe5 {[%emt 0:01:42]} 13. Bxe5 {[%emt 0:01:07]} Rc8 {[%emt 0:00:41]} 14. Rc1 {[%emt 0:04:42]} Bc6 {[%emt 0:05:49]} 15. Nc5 {[%emt 0:02:11]} a5 {[%emt 0:02:12]} 16. Qd3 {[%emt 0:09:09]} O-O {[%emt 0:01:29]} 17. Qa6 {[%emt 0:00:22]} Bxc5 {[%emt 0:12:49]} 18. Rxc5 {[%emt 0:00:14]} Bxa4 {[%emt 0:00:55]} 19. Bxf6 {[%emt 0:02:53]} gxf6 {[%emt 0:00:32]} 20. Rxc8 {[%emt 0:00:11]} Qxc8 {[%emt 0:00:05]} 21. Qxa5 {[%emt 0:00:04]} Bc2 {[%emt 0:07:26]} 22. Qxb4 {[%emt 0:01:14]} Qb8 {[%emt 0:01:04]} 23. Qd2 {[%emt 0:01:26]} Bg6 {[%emt 0:01:14]} 24. h4 {[%emt 0:04:53]} h5 {[%emt 0:01:23]} 25. Bf3 {[%emt 0:02:18]} Kg7 {[%emt 0:00:55]} 26. Rc1 {[%emt 0:05:35]} Qb6 {[%emt 0:02:53]} 27. Rc3 {[%emt 0:05:11]} Rb8 {[%emt 0:06:13]} 28. b3 {[%emt 0:00:28]} Qa5 {[%emt 0:01:06]} 29. Qb2 {[%emt 0:00:52]} Qb4 {[%emt 0:02:51]} 30. e3 {[%emt 0:00:16]} Ra8 {[%emt 0:00:35]} 31. Rc1 {[%emt 0:05:02]} Rb8 {[%emt 0:03:13]} 32. Bd1 {[%emt 0:02:15]} Qe1+ {[%emt 0:02:15]} 33. Kh2 {[%emt 0:00:08]} Qb4 {[%emt 0:01:34]} 34. Qc3 {[%emt 0:01:09]} Qb5 {[%emt 0:01:17]} 35. Kg1 {[%emt 0:03:11]} Ra8 {[%emt 0:01:35]} 36. Bc2 {[%emt 0:00:50]} Rb8 {[%emt 0:03:07]} 37. Bxg6 {[%emt 0:00:08]} Kxg6 {[%emt 0:00:12]} 38. Rb1 {[%emt 0:00:32]} Qb4 {[%emt 0:01:05]} 39. Qxb4 {[%emt 0:00:10]} Rxb4 {[%emt 0:00:01]} 40. Kf1 {[%emt 0:00:18]} e5 {[%emt 0:00:27]} 41. Ke2 {[%emt 0:02:33]} exd4 {[%emt 0:01:48]} 42. exd4 {[%emt 0:00:06]} Rxd4 {[%emt 0:00:30]} 43. b4 {[%emt 0:00:04]} Kf5 {[%emt 0:01:33]} 44. f3 {[%emt 0:01:33]} Ke5 {[%emt 0:00:45]} 45. b5 {[%emt 0:00:16]} Ra4 {[%emt 0:00:56]} 46. b6 {[%emt 0:00:16]} Ra2+ {[%emt 0:00:28]} 47. Kd3 {[%emt 0:00:14]} Ra3+ {[%emt 0:00:09]} 48. Kc2 {[%emt 0:00:20]} Ra8 {[%emt 0:00:12]} 49. b7 {[%emt 0:00:04]} Rb8 {[%emt 0:00:04]} 50. Kd3 {[%emt 0:00:22]} f5 {[%emt 0:04:47]} 51. Rb6 {[%emt 0:03:33]} f4 {[%emt 0:00:31]} 52. gxf4+ {[%emt 0:01:27]} Kxf4 {[%emt 0:00:22]} 53. Rf6+ {[%emt 0:00:02]} Kg3 {[%emt 0:00:19]} 54. Rxf7 {[%emt 0:00:04]} Kxh4 {[%emt 0:00:11]} 55. Rg7 {[%emt 0:00:05]} Kh3 {[%emt 0:01:15]} 56. f4 {[%emt 0:00:10]} h4 {[%emt 0:01:07]} 57. f5 {[%emt 0:00:03]} Kh2 {[%emt 0:00:31]} 58. f6 {[%emt 0:00:08]} h3 {[%emt 0:00:37]} 59. f7 {[%emt 0:00:07]} 1-0

[Event "1st Cyprus Chess Tournament 2019"]
[Site "Larnaca"]
[Date "2019.10.29"]
[Round "6.9"]
[White "Ivanov, Mikhail M"]
[Black "Dermatopoulos, Konstantinos"]
[Result "1-0"]
[ECO "E04"]
[WhiteElo "2342"]
[BlackElo "1992"]
[Annotator "ChessBase"]
[PlyCount "55"]
[EventDate "2019.10.25"]
[EventType "swiss"]
[EventCountry "CYP"]
[SourceTitle "playchess.com"]
[Source "ChessBase"]
[SourceQuality "1"]
[TimeControl "5400+30"]

1. d4 {[%emt 0:02:10]} d5 {[%emt 0:00:00]} 2. c4 {[%emt 0:00:18]} e6 {[%emt 0:00:00]} 3. Nf3 {[%emt 0:00:46]} Nf6 {[%emt 0:00:00]} 4. g3 {[%emt 0:00:04]} Bb4+ {[%emt 0:00:01]} 5. Nbd2 {[%emt 0:01:04]} dxc4 {[%emt 0:00:09]} 6. Bg2 {[%emt 0:00:30]} O-O {[%emt 0:00:42]} 7. O-O {[%emt 0:00:08]} b5 {[%emt 0:01:33]} 8. a4 {[%emt 0:05:33]} c6 {[%emt 0:01:08]} 9. Qc2 {[%emt 0:01:37]} Bb7 {[%emt 0:02:02]} 10. b3 {[%emt 0:00:30]} c3 {[%emt 0:00:12]} 11. Nb1 {[%emt 0:00:06]} bxa4 {[%emt 0:12:40]} 12. Rxa4 {[%emt 0:01:27]} a5 {[%emt 0:00:14]} 13. Nxc3 {[%emt 0:00:15]} Qb6 {[%emt 0:02:48]} 14. Ra1 {[%emt 0:24:01]} Nbd7 {[%emt 0:03:59]} 15. Na4 {[%emt 0:01:25]} Qb5 {[%emt 0:02:02]} 16. Bb2 {[%emt 0:03:26]} c5 {[%emt 0:05:12]} 17. dxc5 {[%emt 0:02:14]} Be4 {[%emt 0:03:32]} 18. Nd4 {[%emt 0:02:32]} Bxc2 {[%emt 0:03:31]} 19. Nxb5 {[%emt 0:00:24]} Rab8 {[%emt 0:00:29]} 20. Nd4 {[%emt 0:01:10]} Be4 {[%emt 0:00:58]} 21. c6 {[%emt 0:04:03]} Bxg2 {[%emt 0:03:35]} 22. Kxg2 {[%emt 0:00:33]} Nc5 {[%emt 0:01:42]} 23. Nxc5 {[%emt 0:10:39]} Bxc5 {[%emt 0:00:42]} 24. Rxa5 {[%emt 0:00:09]} Bxd4 {[%emt 0:00:15]} 25. Bxd4 {[%emt 0:00:30]} Rxb3 {[%emt 0:00:09]} 26. c7 {[%emt 0:02:33]} Rb7 {[%emt 0:00:33]} 27. Be5 {[%emt 0:02:26]} Rc8 {[%emt 0:00:20]} 28. Rfa1 {[%emt 0:03:14]} 1-0

[Event "1st Cyprus Chess Tournament 2019"]
[Site "Larnaca"]
[Date "2019.10.29"]
[Round "6.10"]
[White "Demirciler, Erhan"]
[Black "Cherkasov, Nikolai"]
[Result "1/2-1/2"]
[ECO "A68"]
[WhiteElo "1740"]
[BlackElo "2338"]
[Annotator "ChessBase"]
[PlyCount "96"]
[EventDate "2019.10.25"]
[EventType "swiss"]
[EventCountry "CYP"]
[SourceTitle "playchess.com"]
[Source "ChessBase"]
[SourceQuality "1"]
[TimeControl "5400+30"]

1. d4 {[%emt 0:00:00]} Nf6 {[%emt 0:00:00]} 2. c4 {[%emt 0:00:00]} g6 {[%emt 0:00:00]} 3. Nc3 {[%emt 0:00:00]} Bg7 {[%emt 0:00:00]} 4. e4 {[%emt 0:00:00]} d6 {[%emt 0:00:00]} 5. f4 {[%emt 0:00:20]} O-O {[%emt 0:00:15]} 6. Nf3 {[%emt 0:00:47]} c5 {[%emt 0:00:59]} 7. d5 {[%emt 0:00:13]} e6 {[%emt 0:00:20]} 8. Bd3 {[%emt 0:00:29]} exd5 {[%emt 0:01:55]} 9. cxd5 {[%emt 0:00:08]} Re8 {[%emt 0:04:23]} 10. O-O {[%emt 0:00:17]} Nbd7 {[%emt 0:03:39]} 11. h3 {[%emt 0:08:57]} c4 {[%emt 0:03:28]} 12. Bxc4 {[%emt 0:01:13]} Nxe4 {[%emt 0:01:49]} 13. Nxe4 {[%emt 0:00:13]} Rxe4 {[%emt 0:00:06]} 14. Bd3 {[%emt 0:00:22]} Re8 {[%emt 0:02:30]} 15. f5 {[%emt 0:00:59]} Ne5 {[%emt 0:13:06]} 16. fxg6 {[%emt 0:04:43]} hxg6 {[%emt 0:04:56]} 17. Nxe5 {[%emt 0:20:31]} Bxe5 {[%emt 0:18:10]} 18. Qf3 {[%emt 0:04:18]} f5 {[%emt 0:01:10]} 19. g4 {[%emt 0:09:03]} Rf8 {[%emt 0:04:54]} 20. Bh6 {[%emt 0:06:57]} Qb6+ {[%emt 0:07:11]} 21. Rf2 {[%emt 0:02:12]} Rf6 {[%emt 0:00:53]} 22. Be3 {[%emt 0:19:54]} Qb4 {[%emt 0:04:34]} 23. gxf5 {[%emt 0:08:55]} Bxf5 {[%emt 0:03:33]} 24. Bxf5 {[%emt 0:00:26]} Rxf5 {[%emt 0:00:30]} 25. Qg2 {[%emt 0:06:44]} Kh7 {[%emt 0:07:16]} 26. Rc1 {[%emt 0:01:26]} Kh8 {[%emt 0:02:46]} 27. Qg4 {[%emt 0:02:22]} Qxg4+ {[%emt 0:02:35]} 28. hxg4 {[%emt 0:00:04]} Rxf2 {[%emt 0:00:22]} 29. Kxf2 {[%emt 0:00:42]} Bxb2 {[%emt 0:05:31]} 30. Rb1 {[%emt 0:01:20]} Be5 {[%emt 0:00:17]} 31. Rxb7 {[%emt 0:00:14]} a5 {[%emt 0:00:17]} 32. a4 {[%emt 0:00:41]} Rc8 {[%emt 0:01:19]} 33. Rb5 {[%emt 0:00:22]} Bc3 {[%emt 0:01:43]} 34. Rb6 {[%emt 0:01:17]} Bb4 {[%emt 0:00:59]} 35. Rc6 {[%emt 0:00:07]} Re8 {[%emt 0:00:50]} 36. Bd4+ {[%emt 0:00:40]} Kg8 {[%emt 0:01:35]} 37. Kf3 {[%emt 0:00:28]} Rf8+ {[%emt 0:00:19]} 38. Ke4 {[%emt 0:00:22]} Rf1 {[%emt 0:00:38]} 39. Rc8+ {[%emt 0:00:42]} Kf7 {[%emt 0:00:14]} 40. Rc7+ {[%emt 0:00:18]} Ke8 {[%emt 0:00:11]} 41. Rg7 {[%emt 0:00:25]} Re1+ {[%emt 0:00:28]} 42. Kd3 {[%emt 0:00:37]} Rd1+ {[%emt 0:00:28]} 43. Kc4 {[%emt 0:00:21]} Rc1+ {[%emt 0:00:19]} 44. Kb5 {[%emt 0:00:49]} Rd1 {[%emt 0:00:41]} 45. Kc4 {[%emt 0:00:07]} Rc1+ {[%emt 0:00:34]} 46. Kb5 {[%emt 0:00:12]} Rd1 {[%emt 0:00:09]} 47. Kc4 {[%emt 0:00:56]} Rc1+ {[%emt 0:00:14]} 48. Kb5 {[%emt 0:00:28]} Rd1 {[%emt 0:00:59]} 1/2-1/2

[Event "1st Cyprus Chess Tournament 2019"]
[Site "Larnaca"]
[Date "2019.10.29"]
[Round "6.11"]
[White "Terentiev, Sergei"]
[Black "Blaivas, Lev"]
[Result "1/2-1/2"]
[ECO "A12"]
[WhiteElo "2285"]
[BlackElo "1740"]
[Annotator "ChessBase"]
[PlyCount "47"]
[EventDate "2019.10.25"]
[EventType "swiss"]
[EventCountry "CYP"]
[SourceTitle "playchess.com"]
[Source "ChessBase"]
[SourceQuality "1"]
[TimeControl "5400+30"]

1. c4 {[%emt 0:00:00]} c6 {[%emt 0:00:00]} 2. Nf3 {[%emt 0:01:59]} d5 {[%emt 0:00:01]} 3. e3 {[%emt 0:00:09]} Nf6 {[%emt 0:00:18]} 4. b3 {[%emt 0:00:12]} Bf5 {[%emt 0:00:36]} 5. Bb2 {[%emt 0:00:32]} e6 {[%emt 0:00:56]} 6. Be2 {[%emt 0:00:57]} Bd6 {[%emt 0:02:07]} 7. Ne5 {[%emt 0:00:46]} Nbd7 {[%emt 0:02:47]} 8. f4 {[%emt 0:00:10]} Ne4 {[%emt 0:08:48]} 9. O-O {[%emt 0:00:54]} Nxe5 {[%emt 0:07:27]} 10. fxe5 {[%emt 0:00:51]} Bc5 {[%emt 0:01:37]} 11. b4 {[%emt 0:11:23]} Bxb4 {[%emt 0:02:22]} 12. cxd5 {[%emt 0:00:09]} Qb6 {[%emt 0:07:54]} 13. dxc6 {[%emt 0:04:24]} bxc6 {[%emt 0:01:14]} 14. Bd4 {[%emt 0:00:25]} c5 {[%emt 0:02:44]} 15. Qa4+ {[%emt 0:00:09]} Ke7 {[%emt 0:00:02]} 16. Bc3 {[%emt 0:05:02]} Rhd8 {[%emt 0:01:47]} 17. Bf3 {[%emt 0:03:18]} Rac8 {[%emt 0:04:25]} 18. Bxe4 {[%emt 0:05:10]} Bxe4 {[%emt 0:00:02]} 19. a3 {[%emt 0:00:14]} Bxc3 {[%emt 0:01:28]} 20. Nxc3 {[%emt 0:00:14]} Bg6 {[%emt 0:00:05]} 21. Ne4 {[%emt 0:00:57]} Rd5 {[%emt 0:03:37]} 22. Nd6 {[%emt 0:01:47]} Rd8 {[%emt 0:02:26]} 23. Qf4 {[%emt 0:01:46]} Qb2 {[%emt 0:04:56]} 24. Qxf7+ {[%emt 0:00:13]} 1/2-1/2